fUST/lending_fUST_20240503
["ID","MTS","AMOUNT","RATE_DAILY","PERIOD"]
[325272530,1714677038536,-546.86707295,0.00032145,5]
[325272542,1714677038635,-6.13292705,0.00032145,5]
[325272544,1714677038645,-678.24737158,0.00032876,7]
[325272546,1714677038654,-1229.29857203,0.00033,2]
[325272548,1714677038665,-7034.66198476,0.00033,2]
[325272550,1714677038675,-285.0,0.00033,2]
[325272552,1714677038684,-466.5950793,0.00034,4]
[325272554,1714677038693,-262.952668,0.00034203,2]
[325272556,1714677038702,-553.0,0.00034208,5]
[325272558,1714677038712,-1272.15156012,0.00034728,12]
[325272560,1714677038722,-13720.27220471,0.000349,2]
[325272964,1714677044661,-2100.45704926,0.0002876,3]
[325272967,1714677044676,-2909.81295074,0.0002876,3]
[325272969,1714677044685,-1425.35566368,0.000349,2]
[325272991,1714677044893,-5288.73397488,0.000349,2]
[325272993,1714677044904,-3962.000006,0.000349,2]
[325273002,1714677044981,-2521.18284715,0.000349,2]
[325273004,1714677044990,-598.15577715,0.00035,2]
[325273006,1714677045000,-1159.01222463,0.00035,4]
[325273008,1714677045009,-266.06534258,0.00035,4]
[325273010,1714677045018,-20076.38822635,0.00035,5]
[325273012,1714677045028,-241.827761,0.00035616,120]
[325273014,1714677045037,-6021.56168994,0.00036,2]
[325273016,1714677045046,-285.0,0.00036,2]
[325273018,1714677045055,-553.0,0.00036271,7]
[325273020,1714677045065,-4000.0,0.00036984,2]
[325273022,1714677045074,-1979.66547476,0.00037,2]
[325273024,1714677045086,-10666.82031837,0.00037,5]
[325273026,1714677045095,-553.0,0.00038334,14]
[325273028,1714677045104,-477.95,0.00038397,3]
[325273029,1714677045114,-2000.0,0.00038407,2]
[325273031,1714677045123,-2000.0,0.00039623,3]
[325273033,1714677045133,-150.0,0.00039782,2]
[325273035,1714677045144,-262.952668,0.00039913,2]
[325273037,1714677045155,-518.781,0.00039919,2]
[325273039,1714677045164,-150.0,0.00039919,2]
[325273041,1714677045174,-13856.14483958,0.00039997,14]
[325273043,1714677045183,-4256.07544867,0.0004,4]
[325273045,1714677045193,-2729.9056,0.0004,4]
[325273047,1714677045202,-199.88087288,0.0004,2]
[325275720,1714677567898,3520.6956605,0.00019815,2]
[325275721,1714677588865,328.511282,0.00019815,2]
[325275722,1714677591583,280.86261149,0.00019815,2]
[325275723,1714677592049,154.67518212,0.00019815,2]
[325275724,1714677592441,2084.90379946,0.00019815,2]
[325275725,1714677594870,154.67518212,0.00019815,2]
[325275726,1714677606064,154.67518212,0.00019815,2]
[325275727,1714677608455,1411.64391127,0.00019815,2]
[325275728,1714677613455,280.86261149,0.00019815,2]
[325275729,1714677614890,154.93133687,0.00019815,2]
[325275730,1714677624051,154.76781123,0.00019815,2]
[325275731,1714677635468,280.86261149,0.00019815,2]
[325275732,1714677651477,280.86261149,0.00019815,2]
[325275733,1714677665232,11297.13271282,0.0002,2]
[325275734,1714677675500,257.55395893,0.00019815,2]
[325275735,1714677956323,-1313.56424433,0.00020625,2]
[325275736,1714677956341,-550.24541163,0.00020625,2]
[325275737,1714677956364,-200.0,0.00020626,2]
[325275738,1714677956383,-388.93681872,0.00020757,3]
[325275739,1714677956404,-123.65472177,0.00020857,2]
[325275740,1714677968651,604.05271005,0.000185,2]
[325275741,1714678036104,-194.46840938,0.00020804,3]
[325275742,1714678036125,-825.22781753,0.00020812,2]
[325275743,1714678036145,-876.34527823,0.00020857,2]
[325275744,1714678036165,-221.2,0.00020904,3]
[325275745,1714678036187,-663.6,0.00020904,3]
[325275746,1714678036209,-861.20419007,0.0002091,2]
[325275747,1714678036229,-603.64448761,0.0002091,2]
[325275748,1714678036249,-550.09434991,0.00020911,2]
[325275749,1714678036268,-730.70803192,0.00020912,2]
[325275750,1714678036288,-314.71485559,0.00020912,2]
[325275751,1714678036308,-154.76784823,0.00020912,2]
[325275752,1714678036327,-272.83575254,0.00020912,2]
[325275753,1714678036348,-1920.04544494,0.00020912,2]
[325275754,1714678051121,-164.255641,0.00020626,2]
[325275755,1714678051141,-57316.55244589,0.00020912,2]
[325275756,1714678051160,-155.32673225,0.00020912,2]
[325275757,1714678051179,-157.80708891,0.00020912,2]
[325275758,1714678051198,-1890.97658318,0.00020912,2]
[325275759,1714678051218,-308.84790387,0.00020912,2]
[325275760,1714678051237,-12007.08924555,0.00020913,2]
[325275761,1714678051257,-165.99571683,0.000218,2]
[325275762,1714678051275,-202.91498895,0.0002189,2]
[325275763,1714678051294,-5998.06874937,0.000219,2]
[325275764,1714678051313,-24900.0,0.00021993,2]
[325275765,1714678051332,-191.62094884,0.00022,2]
[325275766,1714678051350,-159.27807126,0.00022,2]
[325275767,1714678051369,-10000.0,0.00022052,2]
[325275768,1714678051388,-3000.0,0.00022216,2]
[325275769,1714678051411,-442.4,0.00022274,3]
[325275770,1714678051431,-166.666666,0.00022464,2]
[325275771,1714678051450,-714.43536843,0.00023,2]
[325275772,1714678051473,-166.666666,0.00023077,2]
[325275773,1714678051493,-1141.48926653,0.00023408,2]
[325275774,1714678051512,-165.9957168,0.00023466,2]
[325275775,1714678051530,-166.666666,0.00023689,2]
[325275776,1714678051549,-693.7301281,0.00024,2]
[325275777,1714678051569,-166.666666,0.00024302,2]
[325275778,1714678051588,-646.07446333,0.00024578,2]
[325275779,1714678051607,-166.666666,0.00024914,2]
[325275780,1714678051625,-260.140097,0.00025,2]
[325275781,1714678051646,-165.9957168,0.00025132,2]
[325275782,1714678051665,-166.666666,0.00025527,2]
[325275783,1714678051684,-154.94984669,0.00025552,2]
[325275784,1714678051704,-825.22781749,0.00025584,2]
[325275785,1714678051725,-621.30372317,0.00025807,2]
[325275786,1714678051746,-165.9957168,0.00026798,2]
[325275787,1714678051768,-475.3846747,0.00026897,2]
[325275788,1714678051790,-154.70605849,0.00026897,2]
[325275789,1714678051811,-164.0768642,0.00026897,2]
[325275790,1714678051832,-5460.88699735,0.00026897,2]
[325275791,1714678051852,-526.91179477,0.00026897,2]
[325275792,1714678051875,-1622.34234505,0.00026898,2]
[325275793,1714678051896,-1937.02871163,0.00026898,2]
[325275794,1714678051918,-44934.94595604,0.00026899,2]
[325275795,1714678051939,-8532.81812051,0.00027,2]
[325275796,1714678051958,-9380.01685072,0.00027,2]
[325275797,1714678051979,-620.06518616,0.00027098,2]
[325275798,1714678052000,-221.01865842,0.00028,2]
[325275799,1714678052020,-620.00325931,0.00028453,2]
[325275800,1714678052042,-161.494678,0.00028493,2]
[325275801,1714678052063,-296.047896,0.00028493,2]
[325275802,1714678052082,-154.62889066,0.00029,2]
[325275803,1714678052103,-620.00016297,0.00029875,2]
[325275804,1714678052123,-418.4,0.00029932,3]
[325275805,1714678052144,-1966.77017511,0.0003,7]
[325275806,1714678052164,-324.0,0.0003,2]
[325275807,1714678052185,-825.22781749,0.00030356,2]
[325275808,1714678052205,-164.255641,0.00030939,2]
[325275809,1714678052226,-620.00000815,0.00031369,2]
[325275810,1714678052247,-447.32492958,0.00032,4]
[325275811,1714678052269,-418.4,0.00032009,5]
[325275812,1714678052290,-466.5950793,0.00034,4]
[325275813,1714678052395,-418.4,0.00034085,5]
[325275814,1714678052426,-296.047896,0.00034203,2]
[325275815,1714678052447,-1159.01222463,0.00035,4]
[325275816,1714678052468,-825.22781749,0.00035127,2]
[325275817,1714678052489,-228.115028,0.00035616,120]
[325275818,1714678052514,-418.4,0.00036162,7]
[325275819,1714678052535,-1979.66547476,0.00037,2]
[325275820,1714678052556,-10666.82031837,0.00037,5]
[325275821,1714678052578,-418.4,0.00038239,14]
[325275822,1714678052599,-493.0,0.00039545,2]
[325275823,1714678052618,-150.0,0.00039545,2]
[325275824,1714678052639,-2000.0,0.0003978,4]
[325275825,1714678052659,-825.22781749,0.00039899,2]
[325275826,1714678052681,-251.47719257,0.000399,31]
[325275827,1714678052701,-251.47719257,0.000399,31]
[325275828,1714678052722,-2000.0,0.000399,2]
[325275829,1714678052743,-296.047896,0.00039913,2]
[325275830,1714678052764,-999.0,0.00039999,7]
[325275831,1714678052786,-999.0,0.00039999,10]
[325275832,1714678052808,-999.0,0.00039999,13]
[325275833,1714678052829,-999.0,0.00039999,16]
[325275834,1714678052853,-999.0,0.00039999,19]
[325275835,1714678052874,-4608.10410278,0.0004,2]
[325275836,1714678052895,-359.98896201,0.0004,2]
[325275837,1714678052916,-1090.33590856,0.0004,2]
[325275838,1714678052937,-7108.91518278,0.0004,2]
[325275839,1714678052957,-4256.07544867,0.0004,4]
[325275840,1714678052979,-2729.9056,0.0004,4]
[325275841,1714678053001,-16398.66264159,0.0004,4]
[325275842,1714678053022,-2205.14896712,0.0004,4]
[325275843,1714678053042,-304.65020211,0.0004,15]
[325275844,1714678053062,-2000.0,0.0004,2]
[325275845,1714678053082,-268.47742236,0.0004,2]
[325275846,1714678053102,-31424.98654956,0.0004003,5]
[325275851,1714678149120,-714.43536843,0.00024382,2]
[325275852,1714678149142,-512.17892556,0.00032,4]
[325275853,1714678149163,-1001.1062598,0.00032478,2]
[325275854,1714678149185,-1159.01222463,0.00035,4]
[325275855,1714678162561,1159.01222463,0.00035,4]
[325275857,1714678176144,214.00124737,0.00036732,4]
[325275858,1714678176553,965.81911734,0.00035,4]
[325275859,1714678185631,296.95405161,0.00036732,4]
[325275860,1714678200700,154.67518212,0.00036732,4]
[325275861,1714678203374,466.5950793,0.00036732,4]
[325275862,1714678209025,417.6,0.00029949,3]
[325275863,1714678210303,417.6,0.00032024,5]
[325275864,1714678210488,2000.0,0.00035,2]
[325275865,1714678210970,417.6,0.00034099,5]
[325275866,1714678211559,417.6,0.00036175,7]
[325275868,1714678225788,1589.67863708,0.00035,4]
[325275869,1714678226680,2000.0,0.00035,2]
[325275871,1714678229535,10000.0,0.0003528,120]
[325275872,1714678230224,19328.23941332,0.0003528,2]
[325275873,1714678230248,5571.76058668,0.0003528,2]
[325275911,1714678232563,-1966.77017511,0.00037357,7]
[325275913,1714678232574,-16.66081371,0.00037797,2]
[325276004,1714678238689,-943.23315539,0.00037797,2]
[325276006,1714678238698,-189.0935612,0.00037798,2]
[325276008,1714678238708,-150.0,0.000379,2]
[325276010,1714678238717,-417.6,0.0003825,14]
[325276012,1714678238725,-493.0,0.00038662,2]
[325276015,1714678238734,-2000.0,0.000399,2]
[325276018,1714678238743,-999.0,0.00039999,7]
[325276021,1714678238752,-999.0,0.00039999,10]
[325276022,1714678238761,-999.0,0.00039999,13]
[325276024,1714678238771,-999.0,0.00039999,16]
[325276026,1714678238780,-594.74,0.00039999,19]
[325276028,1714678238789,-4256.07544867,0.0004,4]
[325276030,1714678238798,-2729.9056,0.00040027,4]
[325276032,1714678238807,-761.37215679,0.0004003,4]
[325276034,1714678238815,-24130.01345044,0.0004003,5]
[325276036,1714678238825,-11698.37402763,0.00040088,15]
[325276038,1714678238834,-9412.8,0.0004012,3]
[325276040,1714678238844,-244.57285414,0.00040128,4]
[325276042,1714678238853,-339.37605899,0.00040128,4]
[325276044,1714678238863,-466.5950793,0.00040128,4]
[325276046,1714678238872,-155.97255696,0.00040128,4]
[325276048,1714678238883,-429.10748215,0.00040128,2]
[325276050,1714678238892,-10106.58759543,0.00040128,4]
[325276052,1714678238901,-939.14006738,0.00040128,4]
[325276054,1714678238910,-793.71046536,0.00040128,2]
[325276056,1714678238921,-5372.30543492,0.00040129,4]
[325276058,1714678238930,-47842.06210352,0.0004013,7]
[325276071,1714678239033,-125340.54754646,0.0004013,2]
[325276073,1714678239045,-417.6,0.00040325,14]
[325276075,1714678239054,-306.0338147,0.00040411,2]
[325276077,1714678239063,-165.071998,0.00040548,2]
[325276079,1714678239073,-158.63766691,0.00040684,3]
[325276081,1714678239082,-2000.0,0.00040811,4]
[325276083,1714678239092,-252.82355724,0.00041,2]
[325276084,1714678239101,-800.0,0.00041095,120]
[325276085,1714678239110,-500.0,0.00041095,7]
[325276086,1714678239119,-500.0,0.00041095,7]
[325276087,1714678239129,-500.0,0.00041095,7]
[325276088,1714678239140,-500.0,0.00041095,7]
[325276089,1714678239150,-500.0,0.00041095,7]
[325276091,1714678239159,-500.0,0.00041095,7]
[325276094,1714678239168,-644.62257287,0.00041095,7]
[325276095,1714678239179,-500.0,0.00041095,7]
[325276096,1714678239187,-1000.0,0.00041095,7]
[325276097,1714678239197,-500.0,0.00041095,7]
[325276098,1714678239206,-500.55899825,0.00041095,7]
[325276099,1714678239215,-494.64256217,0.00041095,7]
[325276100,1714678239224,-500.0,0.00041095,7]
[325276101,1714678239232,-500.0,0.00041095,7]
[325276102,1714678239241,-500.0,0.00041095,7]
[325276103,1714678239250,-500.0,0.00041095,7]
[325276104,1714678239259,-500.0,0.00041095,7]
[325276105,1714678239268,-500.0,0.00041095,7]
[325276106,1714678239277,-500.0,0.00041095,7]
[325276107,1714678239286,-500.0,0.00041095,7]
[325276108,1714678239295,-500.0,0.00041095,7]
[325276109,1714678239304,-500.0,0.00041095,7]
[325276110,1714678239314,-500.0,0.00041095,7]
[325276111,1714678239323,-500.0,0.00041095,7]
[325276112,1714678239332,-500.0,0.00041095,7]
[325276113,1714678239340,-500.0,0.00041095,7]
[325276114,1714678239349,-500.0,0.00041095,7]
[325276115,1714678239358,-347.96518211,0.00041095,7]
[325276116,1714678239367,-500.0,0.00041095,7]
[325276118,1714678239376,-500.80280132,0.00041095,7]
[325276120,1714678239386,-500.0,0.00041095,7]
[325276122,1714678239395,-500.0,0.00041095,7]
[325276124,1714678239404,-500.0,0.00041095,7]
[325276125,1714678239413,-500.0,0.00041095,7]
[325276126,1714678239422,-500.0,0.00041095,7]
[325276127,1714678239431,-370.45166916,0.00041095,7]
[325276128,1714678239445,-500.0,0.00041095,7]
[325276129,1714678239454,-500.0,0.00041095,7]
[325276130,1714678239463,-500.0,0.00041095,7]
[325276131,1714678239472,-500.0,0.00041095,7]
[325276132,1714678239483,-500.0,0.00041095,7]
[325276133,1714678239492,-500.0,0.00041095,7]
[325276134,1714678239502,-529.61551551,0.00041095,7]
[325276135,1714678239512,-500.0,0.00041095,7]
[325276136,1714678239522,-500.0,0.00041095,7]
[325276137,1714678239532,-381.85945035,0.00041095,7]
[325276138,1714678239541,-500.0,0.00041095,7]
[325276139,1714678239550,-500.0,0.00041095,3]
[325276140,1714678239560,-500.0,0.00041095,7]
[325276141,1714678239569,-500.0,0.00041095,7]
[325276142,1714678239578,-500.0,0.00041095,7]
[325276143,1714678239587,-636.36539851,0.00041095,7]
[325276144,1714678239597,-436.4875944,0.00041095,7]
[325276145,1714678239606,-500.0,0.00041095,7]
[325276146,1714678239616,-503.04391728,0.00041095,7]
[325276147,1714678239625,-500.46034649,0.00041095,7]
[325276148,1714678239636,-500.0,0.00041095,7]
[325276149,1714678239645,-500.0,0.00041095,7]
[325276150,1714678239655,-500.0,0.00041095,7]
[325276151,1714678239664,-500.0,0.00041095,7]
[325276152,1714678239673,-500.0,0.00041095,7]
[325276153,1714678239682,-500.0,0.00041095,7]
[325276154,1714678239692,-500.0,0.00041095,7]
[325276155,1714678239701,-500.0,0.00041095,7]
[325276156,1714678239710,-566.10058911,0.00041095,7]
[325276157,1714678239719,-500.0,0.00041095,7]
[325276158,1714678239728,-500.0,0.00041095,7]
[325276159,1714678239737,-500.0,0.00041095,7]
[325276160,1714678239747,-500.0,0.00041095,7]
[325276161,1714678239757,-500.0,0.00041095,7]
[325276162,1714678239767,-500.0,0.00041095,7]
[325276163,1714678239776,-500.0,0.00041095,7]
[325276164,1714678239785,-506.46723585,0.00041095,7]
[325276165,1714678239795,-508.19253996,0.00041095,7]
[325276166,1714678239804,-500.0,0.00041095,7]
[325276167,1714678239813,-500.0,0.00041095,7]
[325276168,1714678239824,-500.0,0.00041095,7]
[325276169,1714678239834,-264.62513097,0.00041095,7]
[325276170,1714678239844,-521.02369631,0.00041095,7]
[325276171,1714678239853,-500.0,0.00041095,7]
[325276172,1714678239862,-500.0,0.00041095,7]
[325276173,1714678239873,-500.0,0.00041095,7]
[325276174,1714678239882,-500.0,0.00041095,7]
[325276175,1714678239892,-464.42625984,0.00041095,7]
[325276176,1714678239901,-500.0,0.00041095,7]
[325276177,1714678239910,-300.0,0.00041095,2]
[325276178,1714678239922,-500.0,0.00041095,7]
[325276179,1714678239932,-500.0,0.00041095,7]
[325276180,1714678239941,-414.68551336,0.00041095,7]
[325276181,1714678239951,-500.0,0.00041095,7]
[325276182,1714678239960,-500.0,0.00041095,7]
[325276183,1714678239969,-500.0,0.00041095,7]
[325276184,1714678239979,-491.38590853,0.00041095,7]
[325276185,1714678239988,-503.04139092,0.00041095,7]
[325276186,1714678239998,-500.0,0.00041095,7]
[325276187,1714678240007,-288.21661922,0.00041095,7]
[325276188,1714678240210,-211.78338078,0.00041095,7]
[325276190,1714678240220,-500.0,0.00041095,7]
[325276191,1714678240229,-500.0,0.00041095,7]
[325276192,1714678240238,-500.0,0.00041095,7]
[325276193,1714678240247,-242.96356586,0.00041095,7]
[325276197,1714678240377,-257.03643414,0.00041095,7]
[325276198,1714678240387,-500.0,0.00041095,7]
[325276199,1714678240397,-205.57356586,0.00041095,7]
[325276383,1714678242338,285.0,0.0003,2]
[325276543,1714678243550,-294.42643414,0.00041095,7]
[325276545,1714678243560,-433.09130654,0.00041095,7]
[325276547,1714678243569,-500.0,0.00041095,7]
[325276549,1714678243578,-500.0,0.00041095,7]
[325276551,1714678243587,-500.0,0.00041095,7]
[325276553,1714678243596,-500.62696283,0.00041095,7]
[325276555,1714678243605,-500.0,0.00041095,7]
[325276557,1714678243614,-185.67983602,0.00041095,7]
[325276559,1714678243623,-500.0,0.00041095,7]
[325276561,1714678243632,-500.39522532,0.00041095,7]
[325276563,1714678243641,-500.0,0.00041095,7]
[325276565,1714678243650,-500.0,0.00041095,7]
[325276567,1714678243659,-500.0,0.00041095,7]
[325276569,1714678243668,-500.0,0.00041095,7]
[325276571,1714678243677,-152.48545322,0.00041095,7]
[325276573,1714678243686,-500.0,0.00041095,7]
[325276575,1714678243696,-529.02583533,0.00041095,7]
[325276577,1714678243705,-500.0,0.00041095,7]
[325276579,1714678243715,-500.0,0.00041095,7]
[325276581,1714678243724,-500.0,0.00041095,7]
[325276583,1714678243733,-540.50344506,0.00041095,7]
[325276585,1714678243743,-500.0,0.00041095,7]
[325276587,1714678243752,-500.0,0.00041095,7]
[325276589,1714678243761,-500.0,0.00041095,7]
[325276591,1714678243770,-500.0,0.00041095,7]
[325276593,1714678243780,-500.0,0.00041095,7]
[325276595,1714678243789,-500.0,0.00041095,7]
[325276597,1714678243798,-500.0,0.00041095,7]
[325276599,1714678243807,-170.4198203,0.00041095,7]
[325276601,1714678243816,-500.0,0.00041095,7]
[325276603,1714678243826,-623.59,0.00041095,7]
[325276605,1714678243835,-403.11446399,0.00041095,7]
[325276607,1714678243844,-499.83572819,0.00041095,7]
[325276609,1714678243853,-500.0,0.00041095,7]
[325276611,1714678243862,-500.0,0.00041095,7]
[325276613,1714678243871,-500.0,0.00041095,7]
[325276615,1714678243880,-656.41,0.00041095,7]
[325276616,1714678243889,-502.10970261,0.00041095,7]
[325276618,1714678243898,-500.0,0.00041095,7]
[325276620,1714678243907,-500.0,0.00041095,7]
[325276622,1714678243917,-462.63933694,0.00041095,7]
[325276629,1714678243974,-0.01512902,0.00041095,7]
[325277672,1714678301537,166.666666,0.00021918,2]
[325277673,1714678302021,166.666666,0.00022431,2]
[325277674,1714678302059,166.666666,0.00022944,2]
[325277675,1714678302283,166.666666,0.00023456,2]
[325277676,1714678302378,222.455319,0.00035616,120]
[325277677,1714678302525,166.666666,0.00023969,2]
[325277678,1714678302956,166.666666,0.00024482,2]
[325277679,1714678316029,200.0,0.0002,2]
[325277681,1714678333484,163.280521,0.00019541,2]
[325277683,1714678392208,-1966.77017511,0.00037523,7]
[325277684,1714678392235,-55555.0,0.00040995,5]
[325277685,1714678392266,-23921.03105177,0.00041095,7]
[325277686,1714678392291,-37.34553404,0.00041095,7]
[325277687,1714678392313,-500.0,0.00041095,7]
[325277688,1714678392337,-500.0,0.00041095,7]
[325277689,1714678392360,-500.0,0.00041095,7]
[325277690,1714678392384,-500.0,0.00041095,7]
[325277691,1714678392407,-500.0,0.00041095,7]
[325277692,1714678392428,-500.0,0.00041095,7]
[325277693,1714678392450,-152.84573506,0.00041095,7]
[325277694,1714678392472,-500.0,0.00041095,7]
[325277695,1714678392501,-500.0,0.00041095,7]
[325277696,1714678392524,-500.0,0.00041095,7]
[325277697,1714678392550,-500.0,0.00041095,7]
[325277698,1714678392574,-594.41,0.00041095,7]
[325277699,1714678392596,-500.0,0.00041095,7]
[325277700,1714678392619,-500.0,0.00041095,7]
[325277701,1714678392641,-481.37170338,0.00041095,7]
[325277702,1714678392666,-500.0,0.00041095,7]
[325277703,1714678392689,-500.0,0.00041095,7]
[325277704,1714678392712,-500.0,0.00041095,7]
[325277705,1714678392735,-500.0,0.00041095,7]
[325277706,1714678392760,-341.10035665,0.00041095,7]
[325277707,1714678392783,-500.0,0.00041095,7]
[325277708,1714678392806,-500.0,0.00041095,7]
[325277709,1714678392828,-500.0,0.00041095,7]
[325277710,1714678392851,-500.0,0.00041095,7]
[325277711,1714678392873,-500.0,0.00041095,7]
[325277712,1714678392896,-505.8506066,0.00041095,7]
[325277713,1714678392918,-611.15946583,0.00041095,7]
[325277714,1714678392940,-500.0,0.00041095,7]
[325277715,1714678392964,-500.0,0.00041095,7]
[325277716,1714678392990,-500.0,0.00041095,7]
[325277717,1714678393012,-500.0,0.00041095,7]
[325277718,1714678393034,-500.0,0.00041095,7]
[325277719,1714678393056,-500.0,0.00041095,7]
[325277720,1714678393078,-500.0,0.00041095,7]
[325277721,1714678393101,-500.0,0.00041095,7]
[325277722,1714678393123,-500.0,0.00041095,7]
[325277723,1714678393145,-316.4562088,0.00041095,7]
[325277724,1714678393169,-500.0,0.00041095,7]
[325277725,1714678393191,-500.0,0.00041095,7]
[325277726,1714678393213,-530.04395977,0.00041095,7]
[325277727,1714678393240,-500.0,0.00041095,7]
[325277728,1714678393262,-500.0,0.00041095,7]
[325277729,1714678393285,-500.0,0.00041095,7]
[325277730,1714678393308,-500.0,0.00041095,7]
[325277731,1714678393330,-500.0,0.00041095,7]
[325277732,1714678393353,-500.0,0.00041095,7]
[325277733,1714678393375,-500.0,0.00041095,7]
[325277734,1714678393397,-500.0,0.00041095,7]
[325277735,1714678393419,-500.0,0.00041095,7]
[325277736,1714678393441,-500.0,0.00041095,7]
[325277737,1714678393463,-500.0,0.00041095,7]
[325277738,1714678393487,-500.0,0.00041095,7]
[325277739,1714678393511,-501.12785563,0.00041095,7]
[325277740,1714678393535,-500.0,0.00041095,7]
[325277741,1714678393557,-500.0,0.00041095,7]
[325277742,1714678393579,-500.0,0.00041095,7]
[325277743,1714678393602,-500.0,0.00041095,7]
[325277744,1714678393625,-500.0,0.00041095,7]
[325277745,1714678393748,-506.67473698,0.00041095,7]
[325277746,1714678393771,-517.47744296,0.00041095,7]
[325277747,1714678393794,-500.0,0.00041095,7]
[325277748,1714678393816,-500.0,0.00041095,7]
[325277749,1714678393838,-500.0,0.00041095,7]
[325277750,1714678393861,-500.0,0.00041095,7]
[325277751,1714678393884,-500.0,0.00041095,7]
[325277752,1714678393907,-500.0,0.00041095,7]
[325277753,1714678393928,-500.0,0.00041095,7]
[325277754,1714678393951,-500.0,0.00041095,7]
[325277755,1714678393975,-500.0,0.00041095,7]
[325277756,1714678393998,-500.0,0.00041095,7]
[325277757,1714678394021,-500.0,0.00041095,7]
[325277758,1714678394044,-500.0,0.00041095,7]
[325277759,1714678394066,-500.0,0.00041095,7]
[325277760,1714678394088,-500.0,0.00041095,7]
[325277761,1714678394110,-500.0,0.00041095,7]
[325277762,1714678394132,-500.0,0.00041095,7]
[325277763,1714678394154,-500.0,0.00041095,7]
[325277764,1714678394176,-500.0,0.00041095,7]
[325277765,1714678394199,-500.0,0.00041095,7]
[325277766,1714678394220,-500.0,0.00041095,7]
[325277767,1714678394244,-389.83567059,0.00041095,7]
[325277768,1714678394266,-500.0,0.00041095,7]
[325277769,1714678394289,-500.0,0.00041095,7]
[325277770,1714678394311,-500.0,0.00041095,7]
[325277771,1714678394334,-500.0,0.00041095,7]
[325277772,1714678394358,-151.0,0.00041095,7]
[325277773,1714678394380,-567.8701497,0.00041095,7]
[325277774,1714678394404,-497.75148852,0.00041095,7]
[325277775,1714678394426,-500.0,0.00041095,7]
[325277776,1714678394452,-500.0,0.00041095,7]
[325277777,1714678394478,-504.05167452,0.00041095,7]
[325277778,1714678394503,-500.0,0.00041095,7]
[325277779,1714678394526,-500.0,0.00041095,7]
[325277780,1714678394549,-500.0,0.00041095,7]
[325277781,1714678394573,-500.0,0.00041095,7]
[325277782,1714678394597,-500.0,0.00041095,7]
[325277783,1714678394619,-532.49854879,0.00041095,7]
[325277784,1714678394643,-500.0,0.00041095,7]
[325277785,1714678394667,-500.0,0.00041095,7]
[325277786,1714678394689,-500.0,0.00041095,7]
[325277787,1714678394712,-500.0,0.00041095,7]
[325277788,1714678394734,-203.11739981,0.00041095,7]
[325277789,1714678394758,-500.0,0.00041095,7]
[325277790,1714678394780,-500.0,0.00041095,7]
[325277791,1714678394802,-500.0,0.00041095,7]
[325277792,1714678394825,-500.0,0.00041095,30]
[325277793,1714678394847,-500.0,0.00041095,7]
[325277794,1714678394869,-500.0,0.00041095,7]
[325277795,1714678394890,-500.0,0.00041095,7]
[325277796,1714678394913,-500.0,0.00041095,7]
[325277797,1714678394934,-500.0,0.00041095,7]
[325277798,1714678394956,-500.0,0.00041095,7]
[325277799,1714678394982,-500.0,0.00041095,7]
[325277800,1714678395007,-500.0,0.00041095,7]
[325277801,1714678395029,-502.05675501,0.00041095,7]
[325277802,1714678395053,-500.0,0.00041095,7]